Cogmind - Beta 13 @@@ ROGUE MODE // 2024.03.30 @ 03:06:07 Player: Jezoensis Result: Destroyed by H-88 Terminator with KE Penetrator Performance ------------- Evolutions (9) 4500 Regions Visited (34) 6800 Robots Destroyed (311) 1555 Value Destroyed (12690) 12690 Prototype IDs (79) 1580 Alien Tech Used (9) 1800 Bonus (23246) 23246 TOTAL SCORE: 52171 Bonus ------- Triggered Max Security 2000 High Alert Combat Kills 5430 Follower Combat Kills 3873 Network Hubs Disabled 400 Met Data Miner 300 Met Zhirov 300 Met Warlord at Base 500 MAIN.C Attacked Warlord 500 Warlord Defense Kills 402 A7 Reached Mainframe 300 Met R17 at Cetus 500 Met Warlord at Research 2000 Acquired SGEMP 2000 Met Sigix 2000 Activated Exoskeleton 3000 Friendly Fire -259 Cogmind --------- Core Integrity 0/1850 Matter 300/300 Energy 100/100 System Corruption 1% Temperature Warm (149) Movement Core (50) Location -1/Access Parts ------- > --- POWER (2) -------- (None) > --- PROPULSION (5) --- (None) > --- UTILITY (16) ----- Experimental Optical Array Experimental Core Analyzer > --- WEAPON (3) ------- (None) > --- INVENTORY (5) ---- Improved Quantum Reactor Stasis Canceller Improved Cloaking Device Point Defense Array Linear Accelerator Peak State ------------ > --- POWER ------------ Light Quantum Reactor Improved Quantum Reactor > --- PROPULSION ------- Antigrav System Antigrav System Improved Gyrokinetic Inverter Cooled Linear Gravjet Combat Linear Gravjet > --- UTILITY ---------- Medium Storage Unit Advanced Matter Compressor Experimental Optical Array Advanced Signal Interpreter Advanced Terrain Scanner Experimental Terrain Scan Processor Advanced Melee Analysis Suite Advanced Launcher Guidance Computer Experimental Core Analyzer Advanced Transmission Jammer Improved Weapon Shielding Centrium Light Armor Plating Advanced Powered Armor Experimental EM Disruption Field System Mapper Deep Network Scanner > --- WEAPON ----------- Multirail Nanosword Plasma Lance > --- INVENTORY -------- Light Antimatter Reactor Advanced Heat Sink Seismic Detector Improved Cloaking Device Point Defense Array Mini Drone Bay Transdimensional Reconstructor Linear Accelerator Zhirov Special [Rating: 206] Favorites ----------- Power Micro Nuclear Core Engine Light Deuterium Engine Power Core Micro Nuclear Core Reactor Micro Antimatter Reactor Propulsion Aerolev Unit Treads Light Treads Wheel Wheel Hover Unit Aerolev Unit Flight Unit VTOL Module Utility Medium Storage Unit Device Structural Scanner Storage Medium Storage Unit Processor Improved Signal Interpreter Hackware System Mapper Protection Light Regenerative Plating Weapon Nanosword Energy Gun Heavy EM Shotgun Energy Cannon Heavy Particle Cannon Ballistic Gun Heavy Assault Rifle Ballistic Cannon Mini Assault Cannon Launcher Advanced Micro-nuke Launcher Impact Weapon Power Maul Slashing Weapon Nanosword Piercing Weapon Plasma Lance Build | -11 -10 -10 -9 -9 -9 -8 -8 -8 -7 -7 -7 -7 -6 -6 -6 -6 -6 -6 -5 -5 -5 -5 -4 -4 -4 -4 -4 -3 -3 -3 -2 -2 -2 -1 ------- Run | Yrd Mat Min Mat Min Exi Min Mat Sto Fac Low Low Dat Pro Fac Ext Cet Arc Hub Fac Upp Upp Zhi Pro Fac Upp Upp War Pro Res Tes Res Qua Sec Acc Slots Evolved 18 | . . . 2 . . . 2 . 2 . . . . 2 . . . . 2 . . . . 2 . . . . 2 . 2 . . 2 Power 1 | . . . . . . . . . . . . . . 1 . . . . . . . . . . . . . . . . . . . . Propulsion 2 | . . . 1 . . . . . 1 . . . . . . . . . . . . . . . . . . . . . . . . . Utility 14 | . . . 1 . . . 2 . 1 . . . . 1 . . . . 2 . . . . 2 . . . . 2 . 1 . . 2 Weapon 1 | . . . . . . . . . . . . . . . . . . . . . . . . . . . . . . . 1 . . . Parts Attached 504 | 9 15 11 13 4 . 16 45 42 38 1 5 . 4 6 6 8 5 21 34 15 1 2 10 16 6 . 24 9 13 41 7 7 39 31 Power 45 | 1 . . 2 . . . 3 2 1 . . . . 4 . . 1 1 4 . . . . 3 . . 5 1 2 9 . 2 2 2 Engine 16 | 1 . . 2 . . . 3 1 1 . . . . . . . 1 1 1 . . . . 2 . . 1 1 . 1 . . . . Core 13 | . . . . . . . . 1 . . . . . 4 . . . . 3 . . . . 1 . . 2 . . 2 . . . . Reactor 16 | . . . . . . . . . . . . . . . . . . . . . . . . . . . 2 . 2 6 . 2 2 2 Propulsion 91 | 4 6 7 4 2 . 5 7 5 7 . . . 1 . 3 2 1 8 4 2 . . 2 3 . . 3 . 1 1 1 2 7 3 Treads 19 | . 3 3 3 1 . 3 4 2 . . . . . . . . . . . . . . . . . . . . . . . . . . Leg . | . . . . . . . . . . . . . . . . . . . . . . . . . . . . . . . . . . . Wheel 22 | 4 3 4 1 1 . 2 3 2 . . . . . . . . . 1 . . . . 1 . . . . . . . . . . . Hover 39 | . . . . . . . . 1 6 . . . 1 . 3 2 1 6 1 . . . . 1 . . 2 . 1 1 1 2 7 3 Flight 11 | . . . . . . . . . 1 . . . . . . . . 1 3 2 . . 1 2 . . 1 . . . . . . . Utility 255 | 2 2 2 5 2 . 5 23 23 19 1 5 . 3 2 1 2 3 10 19 8 1 2 6 10 6 . 11 8 9 21 3 3 20 18 Device 159 | 1 . 1 2 2 . 2 19 18 8 1 4 . 1 2 1 1 2 6 11 4 1 1 6 6 4 . 6 6 6 16 2 3 10 6 Storage 13 | 1 2 1 2 . . . . . 1 . . . . . . . . . . . . 1 . 2 . . . . . . 1 . . 2 Processor 22 | . . . . . . . 3 1 3 . . . . . . . . . 4 1 . . . 1 1 . 1 . 1 4 . . . 2 Hackware 13 | . . . . . . . . . 2 . . . . . . . . 1 4 . . . . . . . 1 . . . . . 1 4 Protection 48 | . . . 1 . . 3 1 4 5 . 1 . 2 . . 1 1 3 . 3 . . . 1 1 . 3 2 2 1 . . 9 4 Artifact . | . . . . . . . . . . . . . . . . . . . . . . . . . . . . . . . . . . . Weapon 113 | 2 7 2 2 . . 6 12 12 11 . . . . . 2 4 . 2 7 5 . . 2 . . . 5 . 1 10 3 . 10 8 Energy Gun 21 | 1 3 . 2 . . 1 4 8 . . . . . . . . . . . . . . . . . . 2 . . . . . . . Energy Cannon 8 | . . . . . . . 6 1 . . . . . . . . . . . . . . . . . . 1 . . . . . . . Ballistic Gun 16 | 1 4 2 . . . 3 1 1 . . . . . . . . . . . . . . . . . . . . . . . . . 4 Ballistic Cannon 10 | . . . . . . . . . 1 . . . . . 1 2 . . . . . . . . . . . . . 1 . . 4 1 Launcher 20 | . . . . . . 2 1 1 3 . . . . . . 1 . 1 2 2 . . . . . . . . . 4 1 . 2 . Special Weapon . | . . . . . . . . . . . . . . . . . . . . . . . . . . . . . . . . . . . Impact Weapon 6 | . . . . . . . . . 2 . . . . . . . . . 2 2 . . . . . . . . . . . . . . Slashing Weapon 31 | . . . . . . . . 1 5 . . . . . 1 1 . 1 3 1 . . 2 . . . 2 . 1 5 2 . 4 2 Piercing Weapon 1 | . . . . . . . . . . . . . . . . . . . . . . . . . . . . . . . . . . 1 Special Melee Weapon . | . . . . . . . . . . . . . . . . . . . . . . . . . . . . . . . . . . . Unidentified Prototypes 48 | . 1 . . . . . 2 3 2 . . . 1 . . . . . 2 1 . 3 3 1 . . 8 . 1 4 . 1 7 8 Parts Lost 87 | . . 2 2 . . 2 4 6 . . . . . . . 2 . 11 . 2 1 . 5 . . . . 2 2 4 . 1 13 28 Power 14 | . . . 1 . . . 1 1 . . . . . . . . . 2 . . . . 1 . . . . 2 1 1 . . 2 2 Propulsion 26 | . . 1 1 . . 1 1 1 . . . . . . . 1 . 5 . 1 1 . 3 . . . . . . . . . 3 7 Utility 38 | . . . . . . . 2 2 . . . . . . . 1 . 4 . 1 . . 1 . . . . . . 3 . 1 7 16 Weapon 9 | . . 1 . . . 1 . 2 . . . . . . . . . . . . . . . . . . . . 1 . . . 1 3 Highest Loss Streak 24 | . . 1 1 . . 2 2 2 . . . . . . . 2 . 11 . 2 1 . 4 . . . . 2 1 2 . 1 10 24 To Critical Strikes . | . . . . . . . . . . . . . . . . . . . . . . . . . . . . . . . . . . . Average Slot Usage (%) 94 | . 100 99 99 100 100 99 99 90 97 100 100 100 99 100 100 100 100 90 77 89 97 88 83 89 100 100 99 98 96 91 90 90 87 87 Engine 4 | . 14 14 11 11 11 11 8 6 4 7 7 7 7 4 . . . 5 2 5 5 5 . 4 5 5 2 1 4 . . . . . Core 2 | . . . . . . . . 2 2 . . . . 7 12 12 11 5 4 5 5 5 5 5 5 5 4 3 . . . . . . Reactor 1 | . . . . . . . . . . . . . . . . . . . . . . . . . . . 2 3 3 7 8 8 7 5 Treads 2 | . 1 3 11 14 11 11 10 9 . . . . . . . . . . . . . . . . . . . . . . . . . . Wheel 5 | . 26 24 21 18 22 21 16 10 . . . . . . . . . . . . . . 2 . . . . . . . . . . . Hover 11 | . . . . . . . . . 27 30 30 30 34 31 31 31 31 24 1 5 5 5 . 2 5 5 11 15 15 15 12 12 11 16 Flight 3 | . . . . . . . . . 2 . . . . . . . . . 15 13 19 16 13 13 20 20 13 10 5 . . . . . Device 17 | . 14 14 18 18 22 17 16 14 10 15 13 15 12 18 18 17 12 11 16 19 22 16 21 22 18 20 16 19 22 25 20 19 18 11 Storage 6 | . 14 14 11 11 11 11 9 9 7 7 7 7 7 6 6 6 6 5 . . . . . 1 5 5 5 5 4 4 4 4 4 2 Processor 16 | . . . . . . . 17 18 22 23 23 23 16 12 12 12 12 12 17 18 22 22 22 20 20 20 20 20 18 21 29 29 21 20 Hackware 2 | . . . . . . . . . 2 . . . . . . . . 5 6 9 5 5 5 5 5 5 5 5 4 4 4 4 7 8 Protection 3 | . . . 3 3 . 4 1 1 1 . . . 6 6 6 6 11 6 . . . . . 4 6 5 7 5 8 2 . . 3 8 Energy Gun 3 | . 12 26 8 11 11 10 3 16 . . . . . . . . . . . . . . . . . . 2 . . . . . . . Ballistic Gun 2 | . 15 1 13 11 11 10 2 . . . . . . . . . . . . . . . . . . . . . . . . . . 2 Impact Weapon 1 | . . . . . . . . . 4 7 7 7 7 6 6 2 . . 4 3 5 5 4 . . . . . . . . . . . Slashing Weapon 5 | . . . . . . . . . 5 7 7 7 7 6 5 3 6 5 4 3 5 5 5 10 10 10 7 10 9 8 11 12 10 3 Naked Turns . | . . . . . . . . . . . . . . . . . . . . . . . . . . . . . . . . . . . Heaviest Build 86 | 13 32 52 61 57 57 59 63 60 30 23 31 23 33 35 37 41 42 40 20 21 21 20 20 33 35 33 55 38 51 50 45 47 61 86 Greatest Support 82 | 32 20 26 26 26 26 26 26 28 36 32 32 32 43 39 46 46 45 49 23 27 27 23 23 36 36 36 56 56 82 82 65 60 80 82 Greatest Overweight (x) 3 | . 1 3 3 2 2 2 3 2 . . . . . . . . . . . . . . . . . . . . 2 . . . . 1 Average Overweight (x) . | . . 1 1 2 2 2 2 1 . . . . . . . . . . . . . . . . . . . . . . . . . . Largest Inventory Capacity 20 | 8 15 20 20 20 20 20 20 20 20 10 10 10 10 10 10 10 10 10 5 5 5 5 5 10 10 10 10 10 10 10 10 10 10 10 Average Capacity 11 | 7 11 16 18 20 20 20 20 20 10 10 10 10 10 10 10 10 10 9 5 5 5 5 5 7 10 10 10 10 10 10 10 10 10 9 Most Carried 20 | 7 15 17 20 20 20 20 20 20 19 10 10 10 10 10 10 10 10 10 5 5 5 5 5 10 10 10 10 10 10 10 10 10 10 10 Average Carried 11 | 3 11 15 15 20 20 19 19 19 9 10 10 10 9 9 9 9 9 9 4 5 5 5 4 6 10 10 9 9 9 9 9 9 9 8 Final Capacity 20 | 8 15 20 20 20 20 20 20 20 10 10 10 10 10 10 10 10 10 5 5 5 5 5 5 10 10 10 10 10 10 10 10 10 10 5 Final Carried 20 | 7 15 15 20 20 20 18 20 20 10 10 10 10 10 10 10 9 10 5 5 5 5 5 5 10 10 10 10 9 10 10 9 9 7 5 Class Distribution -------------------- 21% | Hacker-Ninja 12% | Mutant 10% | Scout 10% | Scavenger-Mutant 8% | Scavenger-Ninja 7% | Skirmisher 5% | Commander-Scout 4% | Ninja 3% | Hacker-Gladiator 3% | Hacker-Scout 3% | Scavenger-Scout Dominant Class ---------------- Mutant | -10/Materials Mutant | -10/Mines Mutant | -9/Materials Mutant | -9/Mines Scavenger-Mutant | -9/Exiles Scavenger-Mutant | -8/Mines Skirmisher | -8/Materials Skirmisher | -8/Storage Scout | -7/Factory Scout | -7/Lower Caves Scout | -7/Lower Caves Scout | -7/Data Miner Scout | -6/Proximity Caves Ninja | -6/Factory Commander-Scout | -6/Extension Commander-Scout | -6/Cetus Infiltrator-Mutant | -6/Archives Scavenger-Scout | -6/Hub_04(d) Hacker-Scout | -5/Factory Hacker-Ninja | -5/Upper Caves Scavenger-Ninja | -5/Upper Caves Sprinter | -5/Zhirov Scavenger-Ninja | -4/Proximity Caves Infiltrator-Ninja | -4/Factory Ninja | -4/Upper Caves Ninja | -4/Upper Caves Hacker-Scout | -4/Warlord Hacker-Ninja | -3/Proximity Caves Hacker-Ninja | -3/Research Hacker-Ninja | -3/Testing Hacker-Ninja | -2/Research Hacker-Ninja | -2/Quarantine Hacker-Ninja | -2/Section 7 Hacker-Gladiator | -1/Access Resources | -11 -10 -10 -9 -9 -9 -8 -8 -8 -7 -7 -7 -7 -6 -6 -6 -6 -6 -6 -5 -5 -5 -5 -4 -4 -4 -4 -4 -3 -3 -3 -2 -2 -2 -1 ----------- Run | Yrd Mat Min Mat Min Exi Min Mat Sto Fac Low Low Dat Pro Fac Ext Cet Arc Hub Fac Upp Upp Zhi Pro Fac Upp Upp War Pro Res Tes Res Qua Sec Acc Matter Collected 8077 | 230 305 130 436 55 20 143 576 507 459 96 24 . 26 . 304 292 104 242 268 175 . . 206 279 90 . 240 7 202 673 225 63 1201 499 Remotely 453 | . . . . . . . 278 175 . . . . . . . . . . . . . . . . . . . . . . . . . . Salvage Created 11602 | 48 439 548 392 104 . 317 691 1688 736 72 . . . . . 250 205 552 443 242 . . 106 176 104 . 94 . 119 896 488 33 2402 457 Parts 579 | 9 27 30 26 3 . 16 38 99 46 . . . . . . 12 19 23 20 6 . . . 7 2 . 9 . 10 51 19 2 84 21 Haulers Intercepted 14 | . . . 1 . . . 2 6 1 . . . . . . . . . . 1 . . . . . . . . . 2 1 . . . Recyclers Shooed 3 | 1 . . . . . . . . 1 . . . . . . . . . . . . . . 1 . . . . . . . . . . Parts Field Recycled . | . . . . . . . . . . . . . . . . . . . . . . . . . . . . . . . . . . . Retrieved Matter . | . . . . . . . . . . . . . . . . . . . . . . . . . . . . . . . . . . . Parts Self-Destructed 4 | . . . . . . . . . . . . . . . . . . . . 2 . . . . 2 . . . . . . . . . Prevented . | . . . . . . . . . . . . . . . . . . . . . . . . . . . . . . . . . . . Kills | -11 -10 -10 -9 -9 -9 -8 -8 -8 -7 -7 -7 -7 -6 -6 -6 -6 -6 -6 -5 -5 -5 -5 -4 -4 -4 -4 -4 -3 -3 -3 -2 -2 -2 -1 ------- Run | Yrd Mat Min Mat Min Exi Min Mat Sto Fac Low Low Dat Pro Fac Ext Cet Arc Hub Fac Upp Upp Zhi Pro Fac Upp Upp War Pro Res Tes Res Qua Sec Acc Combat Hostiles Destroyed 211 | . 8 14 5 2 . 10 12 24 17 . . . . . . 6 . 4 5 10 . . 1 . 3 . 5 . 1 12 5 . 63 4 Melee 17 | . . . . . . . . . . . . . . . . . . . . . . . 1 . 3 . . . 1 6 . . 5 1 Guns 55 | . 7 10 5 2 . 5 5 15 . . . . . . . . . . . . . . . . . . 5 . . . . . . 1 Cannons 6 | . . . . . . . 3 . . . . . . . . 1 . . . . . . . . . . . . . . . . . 2 AOE 131 | . 1 2 . . . 5 4 9 17 . . . . . . 5 . 4 5 10 . . . . . . . . . 6 5 . 58 . Classes Destroyed 22 | 1 5 . 3 . . . 2 1 1 1 . . . . . . . 1 . . . . 1 . . . . . . 1 . . 5 . Worker 14 | . 1 1 1 . . . . 3 2 . . . . . . . . . 1 . . . . 2 . . . . 1 1 . . . 1 Builder 18 | . . . 1 . . . 1 2 2 . . . . . . . . 4 2 . . . . . . . . . 1 3 2 . . . Tunneler 6 | 3 . 1 . . . . . . . . . . . . . . . . 1 . . . . . . . . . . . 1 . . . Hauler 14 | . . . 1 . . . 2 6 1 . . . . . . . . . . 1 . . . . . . . . . 2 1 . . . Recycler 19 | . 1 . . . . 1 . 2 4 . . . . . . . . 3 2 . . . . 1 . . . . . 2 2 . 1 . Mechanic 8 | . . . . . . . . 1 . . . . . . . . . . . . . . . . . . . . . . . . 7 . Operator 8 | . . . . . . . . . 1 . . . . . . . 6 . . . . . . . . . . . . 1 . . . . Drone 1 | . . . . . . . . . . . . . . . . . . . . . . . 1 . . . . . . . . . . . Watcher 17 | . 2 . 1 . . . 3 1 3 . . . . . . 1 . 1 2 . . . . . . . . . . 1 . 1 1 . Swarmer 61 | . 3 6 . . . 4 2 3 11 . . . . . . . . . 5 5 . . . . 2 . 4 . . 8 5 . 3 . Saboteur 6 | . . . . . . . . . . . . . . . . . . . . . . . . . . . . . . . . . 6 . Grunt 86 | . 5 8 1 2 . 6 6 14 6 . . . . . . 5 . 2 . 5 . . . . . . . . . . . . 25 1 Brawler 5 | . . . . . . . 1 . . . . . . . . . . 1 . . . . . . . . . . . . . . 3 . Duelist 1 | . . . . . . . . . . . . . . . . . . . . . . . . . . . . . . . . . 1 . Sentry 16 | . . . 4 . . . 2 6 . . . . . . . . . . . . . . . . . . . . 1 . . . 2 1 Hunter 5 | . . . . . . . 1 1 . . . . . . . . . . . . . . . . . . 1 . . . . . 2 . Programmer 18 | . . . . . . . . . . . . . . . . . . 1 . . . . . . 1 . . . . 3 . . 13 . Behemoth 2 | . . . . . . . . . . . . . . . . . . . . . . . . . . . . . . . . . 1 1 Cetus Guard 1 | . . . . . . . . . . . . . . . . 1 . . . . . . . . . . . . . . . . . . Striker 4 | . . . . . . . . . . . . . . . . . . . . . . . . . . . . . . . . . 3 1 Executioner 2 | . . . . . . . . . . . . . . . . . . . . . . . . . . . . . . . . . 2 . Alpha 7 3 | . . . . . . . . . . . . . . . . . . . . . . . . . . . . . . 1 . . 2 . Samaritan 4 | . . . . . . . . . . 2 . . . . . . . . . 2 . . . . . . . . . . . . . . Best Kill Streak 38 | 3 5 6 4 2 . 4 4 13 14 . . . . . . 5 3 4 7 7 . . 1 2 3 . 4 . 1 9 9 1 38 2 Combat Bots Only 34 | . 4 6 2 2 . 4 3 6 9 . . . . . . 5 . 4 5 5 . . 1 . 3 . 4 . 1 7 5 . 34 2 Max Kills in Single Turn 5 | 1 2 2 1 1 . 2 3 3 4 1 . . . . . 3 1 2 4 2 . . 1 1 1 . 1 . 1 3 5 1 5 1 Gunslinging 1 | . . 1 . . . 1 . . . . . . . . . . . . . . . . . . . . . . . . . . . . Exploded 4 | . 1 1 . . . 2 2 1 4 . . . . . . 3 . 2 3 2 . . . . . . . . . 3 3 . 4 . Melee 1 | . . . . . . . . . . . . . . . . . . . . . . . 1 . 1 . . . 1 1 . . 1 1 Uniques/NPCs Destroyed 3 | . . . . . . . . . . . . . . . . . . . . . . . . . . . . . . . . . . 3 Svarog (-1/Access) Perun (-1/Access) Zhirov (-1/Access) Combat | -11 -10 -10 -9 -9 -9 -8 -8 -8 -7 -7 -7 -7 -6 -6 -6 -6 -6 -6 -5 -5 -5 -5 -4 -4 -4 -4 -4 -3 -3 -3 -2 -2 -2 -1 -------- Run | Yrd Mat Min Mat Min Exi Min Mat Sto Fac Low Low Dat Pro Fac Ext Cet Arc Hub Fac Upp Upp Zhi Pro Fac Upp Upp War Pro Res Tes Res Qua Sec Acc Hostile Shots Fired 1419 | . 31 37 26 5 . 31 73 113 23 . 9 . 22 . 19 30 2 121 7 25 5 . 21 2 7 . . 25 18 77 6 28 170 486 Missed 542 | . 12 13 9 2 . 4 25 41 10 . 3 . 12 . 13 12 1 56 5 13 2 . 12 1 2 . . 8 9 23 5 15 68 166 Damage Taken 14336 | . 221 319 276 40 . 400 584 1112 191 . 79 . 153 . 103 426 24 1543 32 218 59 . 202 23 47 . . 320 141 926 25 116 2017 4739 Core 3822 | . 11 91 49 . . . 76 183 44 . . . 20 . . 118 24 460 . 17 18 . 132 23 4 . . 48 . 107 . 25 574 1798 Absorbed by Shields 104 | . . . . . . . . . . . . . . . 17 87 . . . . . . . . . . . . . . . . . . Redirected to Shielding 576 | . . . . . . . . . . . . . . . . . . . . . . . . . 3 . . 128 59 102 . . 229 55 Ignored by Resistances 2342 | . . . . . . . . . . . . . . . . . . . . . . . . . 62 . . 55 45 691 . 212 757 520 Regen/Repaired (Parts) 308 | . . . . . . . . . . . . . . 33 46 46 18 81 . . . . . . . . 84 . . . . . . . Core Remaining (%) 74 | 100 . 59 . . . 87 . 52 . . . . 90 . . . . 29 . . . . 75 . . . . 93 . 91 . . 64 . Volleys Fired 451 | 11 22 23 36 3 . 18 51 51 14 . . . . . 12 28 9 9 2 10 . . . . . . 14 . . 36 2 . 63 37 Largest 3 | 2 2 2 2 2 . 2 2 2 1 . . . . . 1 1 1 1 1 1 . . . . . . 2 . . 1 1 . 1 3 Hottest 150 | 60 90 90 98 98 . 108 150 106 39 . . . . . 48 48 48 48 39 39 . . . . . . 80 . . 66 30 . 66 136 Shots Fired 667 | 22 44 44 70 6 . 27 97 93 14 . . . . . 12 28 9 9 2 10 . . . . . . 28 . . 36 2 . 63 51 Gun 370 | 22 44 44 70 6 . 16 42 84 . . . . . . . . . . . . . . . . . . 28 . . . . . . 14 Cannon 172 | . . . . . . . 51 2 . . . . . . 12 25 9 2 . . . . . . . . . . . 21 . . 13 37 Launcher 125 | . . . . . . 11 4 7 14 . . . . . . 3 . 7 2 10 . . . . . . . . . 15 2 . 50 . Special . | . . . . . . . . . . . . . . . . . . . . . . . . . . . . . . . . . . . Kinetic 247 | 11 28 . 44 3 . 7 20 1 . . . . . . 12 25 9 2 . . . . . . . . . . . 21 . . 13 51 Thermal 126 | 11 . . 26 3 . 9 69 8 . . . . . . . . . . . . . . . . . . . . . . . . . . Explosive 125 | . . . . . . 11 4 7 14 . . . . . . 3 . 7 2 10 . . . . . . . . . 15 2 . 50 . Electromagnetic 141 | . 16 44 . . . . 4 77 . . . . . . . . . . . . . . . . . . . . . . . . . . Entropic 28 | . . . . . . . . . . . . . . . . . . . . . . . . . . . 28 . . . . . . . Robot Hit Streak 18 | 5 6 13 5 2 . 11 10 15 3 . . . . . 5 6 7 3 1 2 . . . . . . 5 . . 5 . . 18 9 Robot Miss Streak 5 | 3 2 5 4 2 . 2 2 3 2 . . . . . 2 3 1 1 1 1 . . . . . . 3 . . 5 . . 1 2 Penetration Max . | . . . . . . . . . . . . . . . . . . . . . . . . . . . . . . . . . . . Secondary Targets 13 | . 1 5 1 . . 1 2 3 . . . . . . . . . . . . . . . . . . . . . . . . . . Max Gunslinging Chain 1 | . 1 1 1 . . 1 1 1 . . . . . . . . . . . . . . . . . . . . . . . . . . Shots Hit Robots 574 | 10 27 38 37 3 . 19 64 74 16 3 . . . . 13 20 25 10 14 5 . . 3 6 4 . 16 . 8 43 7 2 55 52 Core Hits 606 | 6 19 24 15 3 . 19 33 75 38 . . . . . 2 23 9 20 14 26 . . . 2 2 . 8 . 3 25 9 1 211 19 Critical Kills 1 | . . . . . . . . . 1 . . . . . . . . . . . . . . . . . . . . . . . . . Critical Parts Destroyed 8 | . . . . . . . . . 1 2 . . . . . . . . 1 2 . . 2 . . . . . . . . . . . Critical Strikes 26 | . . . 1 . . . . 1 2 2 . . . . 2 . . . 1 2 . . 2 . . . . . 1 4 1 . 4 3 Burn 2 | . . . 1 . . . . 1 . . . . . . . . . . . . . . . . . . . . . . . . . . Blast 5 | . . . . . . . . . . . . . . . 2 . . . . . . . . . . . . . . 1 . . . 2 Smash 9 | . . . . . . . . . 2 2 . . . . . . . . 1 2 . . 2 . . . . . . . . . . . Sever 9 | . . . . . . . . . . . . . . . . . . . . . . . . . . . . . 1 3 1 . 4 . Impale 1 | . . . . . . . . . . . . . . . . . . . . . . . . . . . . . . . . . . 1 Melee Attacks 304 | . . . . . . . . 3 27 4 . . 8 3 6 1 23 13 23 4 . . 11 19 8 . . . 13 35 22 11 38 32 Impact 29 | . . . . . . . . . 9 2 . . 2 . . 1 . . 2 3 . . 10 . . . . . . . . . . . Slashing 260 | . . . . . . . . 3 18 2 . . 6 3 6 . 23 13 21 1 . . 1 19 8 . . . 13 35 22 11 38 17 Piercing 15 | . . . . . . . . . . . . . . . . . . . . . . . . . . . . . . . . . . 15 Sneak Attacks 56 | . . . . . . . . 1 7 3 . . . . 1 . 11 3 6 2 . . 1 3 . . . . 2 8 6 . 1 1 Combat Hostiles 1 | . . . . . . . . . . . . . . . . . . . . . . . 1 . . . . . . . . . . . Follow-up Attacks 15 | . . . . . . . . . 2 1 . . . . . . . . 1 . . . 1 . . . . . 1 1 2 1 3 2 Damage Inflicted 48231 | 111 650 858 623 63 . 832 1614 3099 2831 264 . . . . 518 1623 1470 1870 1256 1635 . . 299 619 278 . 891 . 650 4076 1362 108 18440 2191 Guns 5315 | 111 463 703 623 63 . 234 443 1480 . . . . . . . . . . . . . . . . . . 891 . . . . . . 304 Cannons 3596 | . . . . . . . 841 . . . . . . . 273 554 173 29 . . . . . . . . . . . 251 . . 389 1086 Explosions 28322 | . 187 155 . . . 598 330 1563 1836 . . . . . . 1069 . 1436 459 1469 . . . . . . . . . 1789 700 . 16731 . Melee 10998 | . . . . . . . . 56 995 264 . . . . 245 . 1297 405 797 166 . . 299 619 278 . . . 650 2036 662 108 1320 801 Ramming . | . . . . . . . . . . . . . . . . . . . . . . . . . . . . . . . . . . . Kinetic 3947 | 43 204 . 314 18 . 71 221 17 . . . . . . 273 554 173 29 . . . . . . . . . . . 251 . . 389 1390 Thermal 2594 | 68 75 155 309 45 . 163 1034 715 30 . . . . . . . . . . . . . . . . . . . . . . . . . Explosive 26684 | . 112 . . . . 598 296 932 1806 . . . . . . 1069 . 723 459 1469 . . . . . . . . . 1789 700 . 16731 . Electromagnetic 3117 | . 259 703 . . . . 63 1379 . . . . . . . . . 713 . . . . . . . . . . . . . . . . Impact 1429 | . . . . . . . . . 697 182 . . . . . . . . 157 166 . . 227 . . . . . . . . . . . Slashing 9062 | . . . . . . . . 56 298 82 . . . . 245 . 1297 405 640 . . . 72 619 278 . . . 650 2036 662 108 1320 294 Piercing 507 | . . . . . . . . . . . . . . . . . . . . . . . . . . . . . . . . . . 507 Entropic 891 | . . . . . . . . . . . . . . . . . . . . . . . . . . . 891 . . . . . . . Highest Corruption 10 | . . . . . . . . 2 . . . . . . . . . 10 4 . . . . . . . . . 1 5 . . 3 1 Average Corruption 2 | . . . . . . . . 1 . . . . . . . . . 3 3 . . . . . . . . . 1 3 . . 1 1 Corruption Purged 5 | . . . . . . . . . . . . . . . . . . . 4 . . . . . . . . . 1 . . . . . Corruption Blocked 45 | . . . . . . . . . . . . . . . . . . . . . . . . . . . . . . 15 11 . 19 . Effects 28 | . . . . . . . . . . . . . . . . . . 4 6 . . . . . . . . . . 9 . . 4 5 Message Errors 11 | . . . . . . . . . . . . . . . . . . 3 2 . . . . . . . . . . 3 . . 1 2 Matter Fused 1 | . . . . . . . . . . . . . . . . . . . . . . . . . . . . . . 1 . . . . Heat Flow Errors 9 | . . . . . . . . . . . . . . . . . . . 2 . . . . . . . . . . 4 . . . 3 Energy Discharges 3 | . . . . . . . . . . . . . . . . . . . 1 . . . . . . . . . . . . . 2 . Data Loss (minor) 3 | . . . . . . . . . . . . . . . . . . 1 1 . . . . . . . . . . 1 . . . . Data Loss (major) 1 | . . . . . . . . . . . . . . . . . . . . . . . . . . . . . . . . . 1 . Overload Shots . | . . . . . . . . . . . . . . . . . . . . . . . . . . . . . . . . . . . Overflow Damage 3764 | . 12 . . . . . 33 32 558 187 . . . . 72 23 355 90 348 186 . . 227 104 54 . . . 126 497 215 20 579 46 Projectiles 77 | . . . . . . . 33 . . . . . . . . 13 . . . . . . . . . . . . . . . . . 31 Explosions 983 | . 12 . . . . . . 32 80 . . . . . . 10 . 85 29 20 . . . . . . . . . 140 46 . 529 . Melee 2704 | . . . . . . . . . 478 187 . . . . 72 . 355 5 319 166 . . 227 104 54 . . . 126 357 169 20 50 15 Knockbacks 17 | . . . . . . . . . 3 . . . . . . 1 . . 1 . . . . . . . . . . 1 . . . 11 Impact 4 | . . . . . . . . . 3 . . . . . . . . . 1 . . . . . . . . . . . . . . . Kinetic 13 | . . . . . . . . . . . . . . . . 1 . . . . . . . . . . . . . 1 . . . 11 Secondary . | . . . . . . . . . . . . . . . . . . . . . . . . . . . . . . . . . . . Self-Inflicted Damage 210 | . 34 . . . . 38 . 16 . . . . . . . . . 107 . . . . . . . . . . . . . . 15 . Shots 5 | . 1 . . . . 1 . 1 . . . . . . . . . 1 . . . . . . . . . . . . . . 1 . Rammed . | . . . . . . . . . . . . . . . . . . . . . . . . . . . . . . . . . . . Targets Rammed . | . . . . . . . . . . . . . . . . . . . . . . . . . . . . . . . . . . . Kicked . | . . . . . . . . . . . . . . . . . . . . . . . . . . . . . . . . . . . Crushed . | . . . . . . . . . . . . . . . . . . . . . . . . . . . . . . . . . . . Highest Temperature 398 | 40 204 192 60 30 . 182 398 179 18 . . . 17 . 136 260 96 122 141 32 7 . . . . . 48 . . 325 . 3 361 190 Average Temperature 64 | 16 87 79 11 22 . 63 69 57 12 . . . 14 . 49 82 40 47 71 16 7 . . . . . 18 . . 111 . 3 97 74 Received Heat Transfer 2379 | . 48 126 63 21 . 180 234 513 18 . . . 45 . 24 37 . 114 . 75 30 . 30 9 . . . 45 42 . . 54 536 135 Effects 7 | . . . . . . . 1 . . . . . . . . 1 . . . . . . . . . . . . . 2 . . 3 . Shutdowns 2 | . . . . . . . . . . . . . . . . . . . . . . . . . . . . . . 1 . . 1 . Energy Bleed 1 | . . . . . . . . . . . . . . . . 1 . . . . . . . . . . . . . . . . . . Interference 3 | . . . . . . . 1 . . . . . . . . . . . . . . . . . . . . . . . . . 2 . Short Circuit 1 | . . . . . . . . . . . . . . . . . . . . . . . . . . . . . . 1 . . . . Siege Activations . | . . . . . . . . . . . . . . . . . . . . . . . . . . . . . . . . . . . Robots Corrupted 4 | . . 2 . . . . . . . . . . . . . . . 2 . . . . . . . . . . . . . . . . Combat Hostiles 2 | . . 2 . . . . . . . . . . . . . . . . . . . . . . . . . . . . . . . . Parts Fried 34 | . 2 3 . . . . . 8 6 . . . . . . . . 8 2 2 . . 3 . . . . . . . . . . . Impact Corruptions 36 | . . . . . . . . . 8 11 . . . . . . . . 4 9 . . 4 . . . . . . . . . . . Robots Melted . | . . . . . . . . . . . . . . . . . . . . . . . . . . . . . . . . . . . Combat Hostiles . | . . . . . . . . . . . . . . . . . . . . . . . . . . . . . . . . . . . Parts Melted 10 | . . . 3 . . 1 5 1 . . . . . . . . . . . . . . . . . . . . . . . . . . Heat Transferred 4110 | 150 100 150 703 74 . 296 1678 909 50 . . . . . . . . . . . . . . . . . . . . . . . . . Parts Sabotaged . | . . . . . . . . . . . . . . . . . . . . . . . . . . . . . . . . . . . Parts Stolen . | . . . . . . . . . . . . . . . . . . . . . . . . . . . . . . . . . . . Parts Stripped . | . . . . . . . . . . . . . . . . . . . . . . . . . . . . . . . . . . . Power Chain Reactions 11 | . 1 2 . . . . 1 7 . . . . . . . . . . . . . . . . . . . . . . . . . . Alert | -11 -10 -10 -9 -9 -9 -8 -8 -8 -7 -7 -7 -7 -6 -6 -6 -6 -6 -6 -5 -5 -5 -5 -4 -4 -4 -4 -4 -3 -3 -3 -2 -2 -2 -1 ------- Run | Yrd Mat Min Mat Min Exi Min Mat Sto Fac Low Low Dat Pro Fac Ext Cet Arc Hub Fac Upp Upp Zhi Pro Fac Upp Upp War Pro Res Tes Res Qua Sec Acc Peak Influence 4584 | 15 441 530 365 122 . 325 412 896 743 . . . . 55 205 527 418 610 630 . . . . 691 . . . . 266 340 407 399 4584 4049 Initial 2744 | . 9 171 206 72 . . 48 131 261 . . . . 28 26 88 210 146 298 . . . . 468 . . . . . . 83 228 62 2744 Average 542 | 4 185 432 244 115 . 166 253 542 466 . . . . 47 110 324 360 327 342 . . . . 565 . . . . 131 167 259 245 1282 3413 Maximum Alert Level 5 | . 2 2 1 . . 1 2 3 3 . . . . . 1 2 2 2 2 . . . . 2 . . . . 1 1 2 1 5 5 Low Security (%) 35 | 100 72 . 20 100 . 60 24 8 . . . . . 100 78 42 . 23 50 . . . . . . . . . 73 50 47 19 49 . Level 1 33 | . 22 18 79 . . 39 68 8 40 . . . . . 21 2 66 43 4 . . . . . . . . . 26 49 50 80 9 . Level 2 19 | . 5 80 . . . . 6 59 38 . . . . . . 55 33 33 45 . . . . 100 . . . . . . 2 . . . Level 3 3 | . . . . . . . . 23 21 . . . . . . . . . . . . . . . . . . . . . . . . . Level 4 . | . . . . . . . . . . . . . . . . . . . . . . . . . . . . . . . . . . . Level 5 . | . . . . . . . . . . . . . . . . . . . . . . . . . . . . . . . . . . 2 High Security . | . . . . . . . . . . . . . . . . . . . . . . . . . . . . . . . . . . . Max Security 8 | . . . . . . . . . . . . . . . . . . . . . . . . . . . . . . . . . 41 97 Squads Dispatched 88 | . 1 . 2 . . . 5 3 7 . . . . 2 . . . 4 4 . . . . 1 . . . . . 2 1 3 22 31 Investigation 11 | . 1 . 1 . . . 1 1 4 . . . . 1 . . . . . . . . . . . . . . . 1 . 1 . . Extermination 6 | . . . . . . . . . 1 . . . . . . . . 1 . . . . . 1 . . . . . 1 . 1 1 . Reinforcement 16 | . . . 1 . . . 1 1 2 . . . . 1 . . . 3 4 . . . . . . . . . . . 1 1 1 . Assault 51 | . . . . . . . . . . . . . . . . . . . . . . . . . . . . . . . . . 20 31 Garrison 4 | . . . . . . . 3 1 . . . . . . . . . . . . . . . . . . . . . . . . . . Intercept . | . . . . . . . . . . . . . . . . . . . . . . . . . . . . . . . . . . . Searches Triggered . | . . . . . . . . . . . . . . . . . . . . . . . . . . . . . . . . . . . Construction Impeded 4 | . . . . . . . . 1 1 . . . . . . . . . 1 . . . . . . . . . . . 1 . . . Haulers Reinforced . | . . . . . . . . . . . . . . . . . . . . . . . . . . . . . . . . . . . Active Scanning Responses . | . . . . . . . . . . . . . . . . . . . . . . . . . . . . . . . . . . . Cargo Convoy Interrupts . | . . . . . . . . . . . . . . . . . . . . . . . . . . . . . . . . . . . Stealth | -11 -10 -10 -9 -9 -9 -8 -8 -8 -7 -7 -7 -7 -6 -6 -6 -6 -6 -6 -5 -5 -5 -5 -4 -4 -4 -4 -4 -3 -3 -3 -2 -2 -2 -1 --------- Run | Yrd Mat Min Mat Min Exi Min Mat Sto Fac Low Low Dat Pro Fac Ext Cet Arc Hub Fac Upp Upp Zhi Pro Fac Upp Upp War Pro Res Tes Res Qua Sec Acc Distress Signals 19 | . 2 . 2 . . . 2 2 2 . . . . . . 1 . 2 1 . . . . . . . . . 4 . . . . 1 Communications Jammed 95 | . . . . . . . . . . . . . . . . . . 1 . . . . 1 17 . . . . 19 14 . . 19 24 Distress Signals 94 | . . . . . . . . . . . . . . . . . . 1 . . . . . 17 . . . . 19 14 . . 19 24 Times Spotted 551 | . 12 14 15 2 . 11 27 31 30 . 4 . 11 . 9 18 12 40 12 6 6 . 17 4 4 . 14 2 10 16 7 10 125 82 Peak Tracking Total 27 | . 4 6 3 2 . 4 6 8 4 . 3 . 10 . 3 8 2 11 6 5 6 . 5 2 3 . 10 2 4 3 3 5 27 14 Tactical Retreats 33 | . . . . . . 1 3 . 3 . 1 . 1 . . . . 5 2 . 3 . 6 2 1 . . . 2 . . 3 . . Traps | -11 -10 -10 -9 -9 -9 -8 -8 -8 -7 -7 -7 -7 -6 -6 -6 -6 -6 -6 -5 -5 -5 -5 -4 -4 -4 -4 -4 -3 -3 -3 -2 -2 -2 -1 ------- Run | Yrd Mat Min Mat Min Exi Min Mat Sto Fac Low Low Dat Pro Fac Ext Cet Arc Hub Fac Upp Upp Zhi Pro Fac Upp Upp War Pro Res Tes Res Qua Sec Acc Traps Triggered 12 | . . . 1 . . . . 2 1 . . . . . . . . 4 1 . . . . . . . . . 1 1 . . 1 . Indirectly 1 | . . . . . . . . . . . . . . . . . . 1 . . . . . . . . . . . . . . . . Trap Hack Attempts . | . . . . . . . . . . . . . . . . . . . . . . . . . . . . . . . . . . . Triggered . | . . . . . . . . . . . . . . . . . . . . . . . . . . . . . . . . . . . Disarmed . | . . . . . . . . . . . . . . . . . . . . . . . . . . . . . . . . . . . Reprogrammed . | . . . . . . . . . . . . . . . . . . . . . . . . . . . . . . . . . . . Reused . | . . . . . . . . . . . . . . . . . . . . . . . . . . . . . . . . . . . Traps Extracted . | . . . . . . . . . . . . . . . . . . . . . . . . . . . . . . . . . . . Installed . | . . . . . . . . . . . . . . . . . . . . . . . . . . . . . . . . . . . Triggered 8 | . . . . . . . . . . . . . . . . . . . . . . . . . . . 8 . . . . . . . Time Bombs Activated 1 | . . . . . . . . . . . . . . . . . . . . . . . . . . . . . . . . . . 1 Machines | -11 -10 -10 -9 -9 -9 -8 -8 -8 -7 -7 -7 -7 -6 -6 -6 -6 -6 -6 -5 -5 -5 -5 -4 -4 -4 -4 -4 -3 -3 -3 -2 -2 -2 -1 ---------- Run | Yrd Mat Min Mat Min Exi Min Mat Sto Fac Low Low Dat Pro Fac Ext Cet Arc Hub Fac Upp Upp Zhi Pro Fac Upp Upp War Pro Res Tes Res Qua Sec Acc Machines Disabled 72 | . 1 2 2 . . 3 3 8 4 . . . . . 2 . 1 14 . . . . . . . . . . . 8 1 1 16 6 Max in Single Turn 14 | . 1 1 1 . . 1 2 1 3 . . . . . . . 1 14 . . . . . . . . . . . 2 1 1 2 1 Garrison Access 4 | . . . . . . . 1 . . . . . . . . . . 1 . . . . . . . . . . . . 1 . . 1 Network Hub 2 | . . . . . . . . . . . . . . . . . . 2 . . . . . . . . . . . . . . . . Machines Repaired . | . . . . . . . . . . . . . . . . . . . . . . . . . . . . . . . . . . . Machines Dismantled . | . . . . . . . . . . . . . . . . . . . . . . . . . . . . . . . . . . . Machines Sabotaged . | . . . . . . . . . . . . . . . . . . . . . . . . . . . . . . . . . . . Overloaded Fab Kills . | . . . . . . . . . . . . . . . . . . . . . . . . . . . . . . . . . . . Hacking | -11 -10 -10 -9 -9 -9 -8 -8 -8 -7 -7 -7 -7 -6 -6 -6 -6 -6 -6 -5 -5 -5 -5 -4 -4 -4 -4 -4 -3 -3 -3 -2 -2 -2 -1 --------- Run | Yrd Mat Min Mat Min Exi Min Mat Sto Fac Low Low Dat Pro Fac Ext Cet Arc Hub Fac Upp Upp Zhi Pro Fac Upp Upp War Pro Res Tes Res Qua Sec Acc Machines Accessed 106 | . 8 1 6 . . . 5 9 9 . . 3 . 4 2 . . 6 5 . . 4 . 4 . . 2 . 5 9 3 12 9 . Terminals 80 | . 8 1 6 . . . 4 8 8 . . . . 1 2 . . 5 4 . . . . 2 . . . . 4 7 2 9 9 . Fabricators 8 | . . . . . . . . . 1 . . . . 2 . . . . 1 . . . . 2 . . . . 1 1 . . . . Repair Stations . | . . . . . . . . . . . . . . . . . . . . . . . . . . . . . . . . . . . Recycling Units 1 | . . . . . . . . 1 . . . . . . . . . . . . . . . . . . . . . . . . . . Scanalyzers 4 | . . . . . . . . . . . . . . 1 . . . . . . . . . . . . . . . 1 . 2 . . Garrison Access 4 | . . . . . . . 1 . . . . . . . . . . 1 . . . . . . . . . . . . 1 1 . . Total Hacks 401 | . 25 2 22 . . . 17 27 26 . . 24 . 11 4 . . 17 29 . . 17 . 27 . . 6 . 17 43 12 45 30 . Successful 220 | . 13 1 10 . . . 7 14 12 . . 24 . 5 2 . . 9 13 . . 17 . 14 . . 6 . 11 20 2 25 15 . Failed 179 | . 12 . 12 . . . 10 13 13 . . . . 6 2 . . 8 16 . . . . 13 . . . . 6 23 10 20 15 . Catastrophic 33 | . 1 . 3 . . . 1 3 3 . . . . . 1 . . 2 3 . . . . . . . . . 2 5 4 4 1 . Database Lockouts 2 | . . 1 . . . . . . 1 . . . . . . . . . . . . . . . . . . . . . . . . . Manual 220 | . 20 2 19 . . . 14 20 18 . . . . 8 4 1 . 10 12 . . . . 17 . . 1 . 9 22 . 24 19 . Terminals 305 | . 25 2 22 . . . 16 24 24 . . . . 4 4 . . 16 26 . . . . 16 . . . . 14 37 6 39 30 . Fabricators 29 | . . . . . . . . . 2 . . . . 6 . . . . 3 . . . . 11 . . . . 3 4 . . . . Repair Stations . | . . . . . . . . . . . . . . . . . . . . . . . . . . . . . . . . . . . Recycling Units 3 | . . . . . . . . 3 . . . . . . . . . . . . . . . . . . . . . . . . . . Scanalyzers 6 | . . . . . . . . . . . . . . 1 . . . . . . . . . . . . . . . 2 . 3 . . Garrison Access 11 | . . . . . . . 1 . . . . . . . . . . 1 . . . . . . . . . . . . 6 3 . . Terminal Hacks 144 | . 9 1 6 . . . 2 11 8 . . 24 . 1 . . . 3 8 . . 17 . 8 . . 6 . 5 10 1 15 9 . Record 18 | . . . . . . . . . . . . 6 . . . . . . . . . 5 . 1 . . 5 . . . . 1 . . Part Schematic 16 | . . . . . . . . . . . . 12 . . . . . . . . . 4 . . . . . . . . . . . . Robot Schematic 3 | . . . . . . . . . . . . 3 . . . . . . . . . . . . . . . . . . . . . . Robot Analysis 18 | . 6 . 2 . . . . 2 1 . . . . . . . . . . . . 4 . 1 . . . . . . . 2 . . Prototype ID Bank 13 | . 1 1 . . . . . 1 . . . 3 . . . . . . . . . 4 . 1 . . . . . . . 2 . . Open Door 7 | . . . . . . . . 2 . . . . . . . . . . . . . . . . . . 1 . . 1 . 1 2 . Branch Access Points 6 | . . . 1 . . . 1 . 1 . . . . . . . . . 1 . . . . 1 . . . . 1 . . . . . Machine Index 2 | . . . . . . . . . 1 . . . . . . . . . . . . . . . . . . . . . 1 . . . Terminal Index 11 | . 1 . 1 . . . 1 1 . . . . . 1 . . . . 1 . . . . 1 . . . . 1 1 . 1 1 . Scanalyzer Index 1 | . . . . . . . . . . . . . . . . . . . . . . . . . . . . . . . . 1 . . Alert Level 3 | . . . . . . . . 1 . . . . . . . . . . . . . . . . . . . . . 1 . 1 . . Unreport Threat 17 | . . . 1 . . . . 2 1 . . . . . . . . 1 3 . . . . . . . . . 2 4 . 2 1 . Locate Traps 12 | . 1 . . . . . . 2 1 . . . . . . . . 1 1 . . . . 1 . . . . . 1 . 1 3 . Recall Investigation 2 | . . . 1 . . . . . . . . . . . . . . . . . . . . . . . . . . 1 . . . . Recall Extermination 3 | . . . . . . . . . 1 . . . . . . . . . . . . . . . . . . . . . . 1 1 . Recall Reinforcements 3 | . . . . . . . . . 1 . . . . . . . . . 1 . . . . . . . . . . . . 1 . . Registered Components 3 | . . . . . . . . . 1 . . . . . . . . . . . . . . 1 . . . . 1 . . . . . Zone Layout 5 | . . . . . . . . . . . . . . . . . . 1 1 . . . . 1 . . . . . 1 . 1 . . Activate Exoskeleton 1 | . . . . . . . . . . . . . . . . . . . . . . . . . . . . . . . . . 1 . Fabricator Hacks 5 | . . . . . . . . . . . . . . 1 . . . . 1 . . . . 1 . . . . 1 1 . . . . Network Status 5 | . . . . . . . . . . . . . . 1 . . . . 1 . . . . 1 . . . . 1 1 . . . . Repair Station Hacks . | . . . . . . . . . . . . . . . . . . . . . . . . . . . . . . . . . . . Recycling Unit Hacks . | . . . . . . . . . . . . . . . . . . . . . . . . . . . . . . . . . . . Scanalyzer 3 | . . . . . . . . . . . . . . . . . . . . . . . . . . . . . . 2 . 1 . . Insert Component 3 | . . . . . . . . . . . . . . . . . . . . . . . . . . . . . . 2 . 1 . . Garrison Access Hacks 3 | . . . . . . . 1 . . . . . . . . . . 1 . . . . . . . . . . . . 1 . . . Seal Access 3 | . . . . . . . 1 . . . . . . . . . . 1 . . . . . . . . . . . . 1 . . . Unauthorized Hacks 65 | . 4 . 4 . . . 4 3 4 . . . . 3 2 . . 5 4 . . . . 5 . . . . 5 7 . 9 6 . Terminals 56 | . 4 . 4 . . . 4 3 3 . . . . 2 2 . . 5 4 . . . . 2 . . . . 4 5 . 8 6 . Track 20 | . . . 1 . . . 1 . . . . . . . . . . 3 1 . . . . . . . . . 2 2 . 6 4 . Assimilate 4 | . 1 . . . . . . . 1 . . . . . . . . 1 1 . . . . . . . . . . . . . . . Botnet 24 | . 2 . 2 . . . 2 2 2 . . . . 1 2 . . 1 2 . . . . 2 . . . . 1 1 . 2 2 . Disrupt 2 | . . . . . . . . . . . . . . . . . . . . . . . . . . . . . 1 1 . . . . Operators 6 | . 1 . 1 . . . 1 1 . . . . . 1 . . . . . . . . . . . . . . . 1 . . . . Fabricators 8 | . . . . . . . . . 1 . . . . 1 . . . . . . . . . 3 . . . . 1 2 . . . . Fabnet 6 | . . . . . . . . . 1 . . . . 1 . . . . . . . . . 2 . . . . 1 1 . . . . Haulers 2 | . . . . . . . . . . . . . . . . . . . . . . . . 1 . . . . . 1 . . . . Repair Stations . | . . . . . . . . . . . . . . . . . . . . . . . . . . . . . . . . . . . Recycling Units . | . . . . . . . . . . . . . . . . . . . . . . . . . . . . . . . . . . . Scanalyzers 1 | . . . . . . . . . . . . . . . . . . . . . . . . . . . . . . . . 1 . . Researchers 1 | . . . . . . . . . . . . . . . . . . . . . . . . . . . . . . . . 1 . . Garrison Access . | . . . . . . . . . . . . . . . . . . . . . . . . . . . . . . . . . . . Data Cores Recovered 1 | . . . . . . . . . . . . . . . . . . 1 . . . . . . . . . . . . . . . . Used 1 | . . . . . . . . . . . . . . . . . . 1 . . . . . . . . . . . . . . . . Hacking Detections 82 | . 7 1 6 . . . 4 7 9 . . . . 4 2 1 . 5 4 . . . . 3 . . . . 5 6 3 11 4 . Full Trace Events 10 | . 1 . . . . . 2 1 3 . . . . 1 . . . . . . . . . . . . . . . 1 . 1 . . Feedback Events . | . . . . . . . . . . . . . . . . . . . . . . . . . . . . . . . . . . . Feedback Blocked . | . . . . . . . . . . . . . . . . . . . . . . . . . . . . . . . . . . . Robot Schematics Acquired 3 | . . . . . . . . . . . . 3 . . . . . . . . . . . . . . . . . . . . . . Robots Built . | . . . . . . . . . . . . . . . . . . . . . . . . . . . . . . . . . . . Authchips . | . . . . . . . . . . . . . . . . . . . . . . . . . . . . . . . . . . . Time . | . . . . . . . . . . . . . . . . . . . . . . . . . . . . . . . . . . . Total Robot Build Rating . | . . . . . . . . . . . . . . . . . . . . . . . . . . . . . . . . . . . Part Schematics Acquired 19 | . . . . . . . . . . . . 12 . . . . . . . . . 4 . . . . . . . 3 . . . . Parts Built . | . . . . . . . . . . . . . . . . . . . . . . . . . . . . . . . . . . . Authchips . | . . . . . . . . . . . . . . . . . . . . . . . . . . . . . . . . . . . Time . | . . . . . . . . . . . . . . . . . . . . . . . . . . . . . . . . . . . Total Part Build Rating . | . . . . . . . . . . . . . . . . . . . . . . . . . . . . . . . . . . . Parts Repaired . | . . . . . . . . . . . . . . . . . . . . . . . . . . . . . . . . . . . Time . | . . . . . . . . . . . . . . . . . . . . . . . . . . . . . . . . . . . Parts Recycled . | . . . . . . . . . . . . . . . . . . . . . . . . . . . . . . . . . . . Recycled Matter . | . . . . . . . . . . . . . . . . . . . . . . . . . . . . . . . . . . . Retrieved Matter . | . . . . . . . . . . . . . . . . . . . . . . . . . . . . . . . . . . . Retrieved Components . | . . . . . . . . . . . . . . . . . . . . . . . . . . . . . . . . . . . Parts Scanalyzed . | . . . . . . . . . . . . . . . . . . . . . . . . . . . . . . . . . . . Part Schematics Acquired . | . . . . . . . . . . . . . . . . . . . . . . . . . . . . . . . . . . . Parts Damaged . | . . . . . . . . . . . . . . . . . . . . . . . . . . . . . . . . . . . Bothacking | -11 -10 -10 -9 -9 -9 -8 -8 -8 -7 -7 -7 -7 -6 -6 -6 -6 -6 -6 -5 -5 -5 -5 -4 -4 -4 -4 -4 -3 -3 -3 -2 -2 -2 -1 ------------ Run | Yrd Mat Min Mat Min Exi Min Mat Sto Fac Low Low Dat Pro Fac Ext Cet Arc Hub Fac Upp Upp Zhi Pro Fac Upp Upp War Pro Res Tes Res Qua Sec Acc Used RIF Installer . | . . . . . . . . . . . . . . . . . . . . . . . . . . . . . . . . . . . Robots Hacked 9 | . . . . . . . . . . . . . . . 2 . . . . . . . . . . . . . 1 1 1 . 3 1 Non-combat . | . . . . . . . . . . . . . . . . . . . . . . . . . . . . . . . . . . . Combat 9 | . . . . . . . . . . . . . . . 2 . . . . . . . . . . . . . 1 1 1 . 3 1 Robot Hacks Applied . | . . . . . . . . . . . . . . . . . . . . . . . . . . . . . . . . . . . Relay Couplers Released 3 | . . . . . . . . . . . . . . . . . . . . . . . . . . . . . . . . . . 3 Machine Destruction 3 | . . . . . . . . . . . . . . . . . . . . . . . . . . . . . . . . . . 3 Fabnet Peak Effective % 6 | . . . . . . . . . . . . . 3 3 3 3 3 3 4 4 4 4 1 1 1 1 1 6 6 6 5 5 5 1 Autooverrided 9 | . . . . . . . . . . . . . . . 2 . . . . . . . . . . . . . 1 1 1 . 3 1 Robots Rewired 11 | . . . . . . . . . . . . . . . 10 . . . . . . . . . . . . . . 1 . . . . Allies Hacked . | . . . . . . . . . . . . . . . . . . . . . . . . . . . . . . . . . . . Hacks Repelled . | . . . . . . . . . . . . . . . . . . . . . . . . . . . . . . . . . . . Allies | -11 -10 -10 -9 -9 -9 -8 -8 -8 -7 -7 -7 -7 -6 -6 -6 -6 -6 -6 -5 -5 -5 -5 -4 -4 -4 -4 -4 -3 -3 -3 -2 -2 -2 -1 -------- Run | Yrd Mat Min Mat Min Exi Min Mat Sto Fac Low Low Dat Pro Fac Ext Cet Arc Hub Fac Upp Upp Zhi Pro Fac Upp Upp War Pro Res Tes Res Qua Sec Acc Total Allies 36 | . 1 2 . . . . . . 1 . . . . . 16 3 . 1 . . . . . . . . . . 1 2 1 . 4 4 Largest Group 11 | . 1 3 2 . . . . . 1 . . . . . 11 7 4 2 . . . . . . . . . . 1 2 1 . 2 4 Highest-Rated Group 1580 | . 10 60 50 . . . . . 10 . . . . . 431 500 370 192 . . . . . . . . . . 47 185 30 . 1231 1580 Highest-Rated Ally 1204 | . 10 31 31 . . . . . 10 . . . . . 159 153 147 96 . . . . . . . . . . 47 155 30 . 1204 1204 Total Orders 14 | . 2 7 . . . . . . . . . . . . . 3 . . . . . . . . . . . . . . . . . 2 STAY 7 | . 1 4 . . . . . . . . . . . . . 2 . . . . . . . . . . . . . . . . . . FOLLOW 5 | . 1 3 . . . . . . . . . . . . . 1 . . . . . . . . . . . . . . . . . . EXPLORE 2 | . . . . . . . . . . . . . . . . . . . . . . . . . . . . . . . . . . 2 Ally Attacks 446 | . . 5 24 . . . . . . . . . . . 95 46 18 18 . . . . . . . . . . 3 32 3 . 97 105 Total Damage 26940 | . . 85 254 . . . . . . . . . . . 2103 1602 738 459 . . . . . . . . . . 75 998 61 . 9755 10810 Kills 94 | . . . 3 . . . . . . . . . . . 14 12 5 3 . . . . . . . . . . . 3 1 . 27 26 Allies Corrupted 2 | . . . . . . . . . . . . . . . . . . 1 . . . . . . . . . . . 1 . . . . Allies Melted 1 | . . . . . . . . . . . . . . . 1 . . . . . . . . . . . . . . . . . . . Intel | -11 -10 -10 -9 -9 -9 -8 -8 -8 -7 -7 -7 -7 -6 -6 -6 -6 -6 -6 -5 -5 -5 -5 -4 -4 -4 -4 -4 -3 -3 -3 -2 -2 -2 -1 ------- Run | Yrd Mat Min Mat Min Exi Min Mat Sto Fac Low Low Dat Pro Fac Ext Cet Arc Hub Fac Upp Upp Zhi Pro Fac Upp Upp War Pro Res Tes Res Qua Sec Acc Robot Analysis Total 18 | . 6 . 2 . . . . 2 1 . . . . . . . . . . . . 4 . 1 . . . . . . . 2 . . Derelict Logs Recovered 9 | . . . . . . . . . . 2 1 . 2 . . . . . . . 2 . 1 . . 1 . . . . . . . . Drone Launches 3 | . . . . . . . . . . . . . . . . . . . . . . . . . . . . . . . . . . 3 Drone Recoveries 2 | . . . . . . . . . . . . . . . . . . . . . . . . . . . . . . . . . . 2 Exploration | -11 -10 -10 -9 -9 -9 -8 -8 -8 -7 -7 -7 -7 -6 -6 -6 -6 -6 -6 -5 -5 -5 -5 -4 -4 -4 -4 -4 -3 -3 -3 -2 -2 -2 -1 ------------- Run | Yrd Mat Min Mat Min Exi Min Mat Sto Fac Low Low Dat Pro Fac Ext Cet Arc Hub Fac Upp Upp Zhi Pro Fac Upp Upp War Pro Res Tes Res Qua Sec Acc Turns Passed 11693 | 87 470 350 474 32 198 453 917 678 581 95 146 32 176 104 652 167 164 501 416 157 194 48 418 285 172 40 428 192 332 693 303 409 819 510 Spaces Moved 15794 | 47 422 245 293 15 166 324 548 359 981 224 342 74 334 234 910 167 123 817 635 239 446 136 990 682 462 141 804 344 406 827 536 754 1087 680 Core 107 | 16 . . . . . . . . . . . . . . . . . . . . . . . . . . . . 61 . . . 7 23 Treads . | . . . . . . . . . . . . . . . . . . . . . . . . . . . . . . . . . . . Legs . | . . . . . . . . . . . . . . . . . . . . . . . . . . . . . . . . . . . Wheels 2403 | 31 422 245 293 15 166 324 548 359 . . . . . . . . . . . . . . . . . . . . . . . . . . Hover 9115 | . . . . . . . . . 981 224 342 74 334 234 910 167 123 788 . 87 . . . . . . 308 344 345 827 536 754 1080 657 Flight 4169 | . . . . . . . . . . . . . . . . . . 29 635 152 446 136 990 682 462 141 496 . . . . . . . Fastest Speed 27 | 50 80 95 105 120 120 110 110 115 34 38 38 38 31 36 36 40 40 40 30 27 27 30 30 28 28 28 28 52 48 48 48 48 38 36 Average Speed 51 | 79 86 105 113 120 120 116 121 123 40 38 38 38 35 36 36 40 40 47 30 41 29 30 33 30 28 28 37 52 66 48 48 49 48 42 Slowest Speed 150 | 100 95 145 145 120 120 120 145 130 42 38 38 38 38 36 40 40 40 60 45 60 30 30 37 32 28 28 52 52 150 52 48 52 60 110 Overloaded Moves 69 | . . . . . . . . . 6 . . . 63 . . . . . . . . . . . . . . . . . . . . . Propulsion Burnouts . | . . . . . . . . . . . . . . . . . . . . . . . . . . . . . . . . . . . Robots Hopped 2 | . . . . . . . . . . . . . . . . . . . . . 1 . . . 1 . . . . . . . . . Cave-ins Triggered . | . . . . . . . . . . . . . . . . . . . . . . . . . . . . . . . . . . . Teleports 60 | . . . . . . . . . . . . . . . . . . . . . . 1 . . . . . . . . . . 31 28 Exploration Rate (%) 54 | 4 72 62 47 6 59 72 54 78 39 48 55 71 56 10 74 73 86 60 21 43 67 60 86 24 64 43 87 70 22 84 17 82 70 27 Regions Visited 34 Branch Regions 24 Pre-discovered Areas 6 | . . . . . . . . . . 1 . 1 . . . . . . . . . 3 . . . 1 . . . . . . . . Known Exits Taken 28 | . . . 1 . . . 1 1 1 1 1 1 1 1 1 1 1 1 1 1 1 1 1 1 1 1 1 1 1 1 1 1 1 . Unknown Exits Taken 6 | 1 1 1 . 1 1 1 . . . . . . . . . . . . . . . . . . . . . . . . . . . . Scrap Searched 19 | . . 1 . . . 2 . . . 1 3 . 4 . . . . . . 1 2 . 3 . 2 . . . . . . . . . Spaces Dug 90 | . . . . . . . 2 1 14 1 . . 6 3 1 1 . 5 8 1 . . 6 11 2 . . . 3 2 8 5 4 6 Terrain Destroyed 1018 | . 22 3 . . . 88 32 46 69 1 . . 6 3 2 39 . 190 21 95 . . 6 11 2 . 4 . 3 136 22 5 203 9 Melee 85 | . . . . . . . . . 14 1 . . 6 3 1 1 . 5 8 1 . . 6 11 2 . . . 3 2 8 5 3 5 Projectile 33 | . . . . . . . 14 2 . . . . . . 1 2 . . . . . . . . . . 4 . . 5 . . 1 4 AOE 900 | . 22 3 . . . 88 18 44 55 . . . . . . 36 . 185 13 94 . . . . . . . . . 129 14 . 199 . Terrain Rammed . | . . . . . . . . . . . . . . . . . . . . . . . . . . . . . . . . . . . Walls Destroyed . | . . . . . . . . . . . . . . . . . . . . . . . . . . . . . . . . . . . Machines Disabled . | . . . . . . . . . . . . . . . . . . . . . . . . . . . . . . . . . . . Actions | -11 -10 -10 -9 -9 -9 -8 -8 -8 -7 -7 -7 -7 -6 -6 -6 -6 -6 -6 -5 -5 -5 -5 -4 -4 -4 -4 -4 -3 -3 -3 -2 -2 -2 -1 --------- Run | Yrd Mat Min Mat Min Exi Min Mat Sto Fac Low Low Dat Pro Fac Ext Cet Arc Hub Fac Upp Upp Zhi Pro Fac Upp Upp War Pro Res Tes Res Qua Sec Acc Total 18206 | 73 484 290 362 21 165 369 698 487 1109 227 354 77 382 250 1212 233 193 897 813 272 504 141 1055 736 492 140 908 352 447 1045 561 780 1264 813 Wait 647 | . 3 6 7 . . . 16 9 4 . 8 4 32 . 156 27 28 29 94 3 59 . 39 1 18 . 33 . 1 60 . . 5 5 Move 15756 | 46 421 244 292 14 165 323 547 358 980 223 341 73 333 233 909 166 122 816 634 238 443 135 989 681 459 140 803 343 405 826 535 753 1086 680 Hop 2 | . . . . . . . . . . . . . . . . . . . . . 1 . . . 1 . . . . . . . . . Pick Up 152 | 6 12 3 8 . . 6 17 7 12 . . . 3 4 2 2 3 4 6 . . . 1 10 1 . 7 . 5 9 . 4 11 9 Fast Attach 169 | 7 3 1 3 . . . 6 6 4 . . . 2 1 1 . . 5 22 6 . 4 6 9 . . 15 . 6 14 3 3 24 18 Attach 99 | 1 . 3 4 . . 4 7 9 6 . . . 2 3 . 3 . 7 5 . . . 2 2 . . 5 1 5 8 1 2 10 9 Detach 60 | 1 1 1 2 . . . 3 7 2 . . . 1 . . . . 2 6 1 . . 2 1 . . 6 . 4 5 . 1 5 9 Swap 250 | 1 12 7 6 4 . 12 32 27 28 1 5 . 1 2 5 5 5 9 7 9 1 . 2 5 6 . 4 8 3 19 3 3 13 5 Drop 215 | . 10 2 4 . . 6 19 10 25 . . . 2 4 5 1 3 3 15 2 . 2 4 10 1 . 21 . 6 24 3 7 14 12 Fire 451 | 11 22 23 36 3 . 18 51 51 14 . . . . . 12 28 9 9 2 10 . . . . . . 14 . . 36 2 . 63 37 Melee 267 | . . . . . . . . 3 24 3 . . 6 3 6 1 23 13 22 3 . . 10 17 6 . . . 12 34 14 7 33 27 Ram . | . . . . . . . . . . . . . . . . . . . . . . . . . . . . . . . . . . . Kick . | . . . . . . . . . . . . . . . . . . . . . . . . . . . . . . . . . . . Crush . | . . . . . . . . . . . . . . . . . . . . . . . . . . . . . . . . . . . Escape Stasis 11 | . . . . . . . . . 10 . . . . . . . . . . . . . . . . . . . . . . . . 1 Rewire 126 | . . . . . . . . . . . . . . . 116 . . . . . . . . . . . . . . 10 . . . . Trap 1 | . . . . . . . . . . . . . . . . . . . . . . . . . . . . . . . . . . 1 Miscellaneous . | . . . . . . . . . . . . . . . . . . . . . . . . . . . . . . . . . . . Route ------- -11/Scrapyard -10/Materials (discovered 4 exits: *Mat x2 / *Min x2) -10/Mines -9/Materials -9/Mines -9/Exiles (discovered 2 exits: [*Min x2]) -8/Mines -8/Materials -8/Storage -7/Factory (discovered 2 exits: *Low x2) -7/Lower Caves -7/Lower Caves (discovered 2 exits: *Fac / *Dat) -7/Data Miner -6/Proximity Caves -6/Factory (discovered 2 exits: Low / *Ext) -6/Extension (discovered 2 exits: *Fac / *Cet) -6/Cetus (discovered 2 exits: *Fac / *Arc) -6/Archives (discovered 3 exits: *Fac / *Hub x2) -6/Hub_04(d) (discovered 3 exits: *Fac x3) -5/Factory (discovered 2 exits: *Upp x2) -5/Upper Caves -5/Upper Caves -5/Zhirov -4/Proximity Caves -4/Factory (discovered 5 exits: *Res x2 / *Upp x2 / Arm) -4/Upper Caves -4/Upper Caves -4/Warlord -3/Proximity Caves -3/Research (discovered 3 exits: *Res / *Tes x2) -3/Testing -2/Research -2/Quarantine -2/Section 7 -1/Access (discovered 1 exit: *Com) History --------- Turn | Location | Event 2 | -11/Scrapyard | Met Revision 17 8 | -11/Scrapyard | Discovered new exit (range 15) 88 | -11/Scrapyard | Entered Materials 215 | -10/Materials | Discovered new exit (range 11) 307 | -10/Materials | Build established: Mutant 308 | -10/Materials | Discovered new exit (range 7) 344 | -10/Materials | Discovered new exit (range 13) 527 | -10/Materials | Discovered new exit (range 9) 558 | -10/Materials | Entered Mines 558 | -10/Mines | Accompanied by 1 ally 803 | -10/Mines | Received a Rocket Launcher from a helpful Derelict 888 | -10/Mines | Discovered new exit (range 11) 905 | -10/Mines | Central database locked down 908 | -10/Mines | Entered Materials 908 | -9/Materials | Accompanied by 2 allies 908 | -9/Materials | Evolved 2 slots: Propulsion x1, Utility x1 913 | -9/Materials | Led the pair of lost Derelicts to an unsafe place 1175 | -9/Materials | Identified exit to Mines 1382 | -9/Materials | Entered Mines 1409 | -9/Mines | Deemed a non-threat by the Exiles lab entrance 1409 | -9/Mines | Discovered new exit (range 5) 1414 | -9/Mines | Entered Exiles 1430 | -9/Exiles | Discovered new exit (range 15) 1447 | -9/Exiles | Met 8R-AWN 1462 | -9/Exiles | Met EX-HEX 1496 | -9/Exiles | Met EX-BIN 1512 | -9/Exiles | Build established: Scavenger-Mutant 1556 | -9/Exiles | Met EX-DEC 1603 | -9/Exiles | Discovered new exit (range 10) 1612 | -9/Exiles | Entered Mines 2057 | -8/Mines | Discovered new exit (range 9) 2065 | -8/Mines | Entered Materials 2065 | -8/Materials | Evolved 2 slots: Utility x2 2228 | -8/Materials | Garrison activated, responded to threat 2657 | -8/Materials | Identified exit to Storage 2982 | -8/Materials | Entered Storage 3045 | -8/Storage | Garrison activated, responded to threat 3537 | -8/Storage | Found Prototype Protection 3537 | -8/Storage | Identified Lgt. Regenerative Plating 3593 | -8/Storage | Discovered new exit (range 9) 3659 | -8/Storage | Identified exit to Factory 3660 | -8/Storage | Entered Factory 3660 | -7/Factory | Evolved 2 slots: Propulsion x1, Utility x1 3970 | -7/Factory | Identified exit to Lower Caves 4138 | -7/Factory | Destroyed 9 combat bots 4205 | -7/Factory | Central database locked down 4235 | -7/Factory | Build established: Scout 4241 | -7/Factory | Entered Lower Caves 4332 | -7/Lower Caves | Discovered new exit (range 13) 4336 | -7/Lower Caves | Identified exit to Lower Caves 4336 | -7/Lower Caves | Entered another Lower Caves area 4344 | -7/Lower Caves | Encountered a Warlord checkpoint 4365 | -7/Lower Caves | Discovered new exit (range 12) 4372 | -7/Lower Caves | Learned Factory terminal intel 4480 | -7/Lower Caves | Discovered new exit (range 5) 4481 | -7/Lower Caves | Identified exit to Data Miner 4482 | -7/Lower Caves | Entered Data Miner 4482 | -7/Data Miner | Discovered new exit (range 6) 4484 | -7/Data Miner | Identified exit to Proximity Caves 4488 | -7/Data Miner | Met Data Miner 4496 | -7/Data Miner | Learned location of Section 7 (-2) 4496 | -7/Data Miner | Acquired the access code to Warlord's prototype stash 4505 | -7/Data Miner | Received God Mode back door access code from Data Miner 4514 | -7/Data Miner | Entered Proximity Caves 4515 | -6/Proximity Caves | Learned 8 Factory zone layouts 4529 | -6/Proximity Caves | Found Alien Artifact 4529 | -6/Proximity Caves | Identified Core Expander 4529 | -6/Proximity Caves | Installed Core Expander, added new Propulsion slot 4544 | -6/Proximity Caves | Identified exit to Factory 4670 | -6/Proximity Caves | Attracted the attention of an 0b10 checkpoint 4690 | -6/Proximity Caves | Entered Factory 4690 | -6/Factory | Evolved 2 slots: Power x1, Utility x1 4691 | -6/Factory | Identified exit to Extension 4692 | -6/Factory | Identified exit to Lower Caves 4693 | -6/Factory | Loaded intel: 28 terminal locations 4794 | -6/Factory | Entered Extension 4829 | -6/Extension | Rescued a captive Derelict 4984 | -6/Extension | Rescued a captive Derelict 4994 | -6/Extension | Rescued a captive Derelict 5014 | -6/Extension | Rescued A7 5210 | -6/Extension | Build established: Commander-Scout 5213 | -6/Extension | Spotted B-75 Beast 5270 | -6/Extension | Allies destroyed B-75 Beast 5276 | -6/Extension | Spotted B-75 Beast 5303 | -6/Extension | Allies destroyed B-75 Beast 5325 | -6/Extension | Rescued a captive Derelict 5373 | -6/Extension | Discovered new exit (range 19) 5374 | -6/Extension | Discovered new exit (range 19) 5380 | -6/Extension | Identified exit to Cetus 5446 | -6/Extension | Entered Cetus 5446 | -6/Cetus | Accompanied by 7 allies (A7) 5451 | -6/Cetus | Acquired a Cetus Manufacturing Module code from A7 5457 | -6/Cetus | Spotted Cetus Guard 5458 | -6/Cetus | Spotted Cetus Guard 5458 | -6/Cetus | Spotted Cetus Guard 5465 | -6/Cetus | Spotted Cetus Guard 5473 | -6/Cetus | Allies destroyed Cetus Guard 5476 | -6/Cetus | Allies destroyed Cetus Guard 5482 | -6/Cetus | Allies destroyed Cetus Guard 5482 | -6/Cetus | Allies destroyed Cetus Guard 5505 | -6/Cetus | Escorted A7 to Cetus Mainframe 5513 | -6/Cetus | Lost 4 allies 5525 | -6/Cetus | Started Cetus Manufacturing Module 5528 | -6/Cetus | Discovered new exit (range 19) 5542 | -6/Cetus | Spotted Cetus Guard 5543 | -6/Cetus | Spotted Cetus Guard 5548 | -6/Cetus | Destroyed Cetus Guard 5548 | -6/Cetus | Spotted Cetus Guard 5550 | -6/Cetus | Manufactured an Enhanced Grunt 5550 | -6/Cetus | Spotted Cetus Guard 5563 | -6/Cetus | Allies destroyed Cetus Guard 5566 | -6/Cetus | Allies destroyed Cetus Guard 5569 | -6/Cetus | Allies destroyed Cetus Guard 5573 | -6/Cetus | Discovered new exit (range 20) 5575 | -6/Cetus | Manufactured an Enhanced Grunt 5577 | -6/Cetus | Met Revision 17 5595 | -6/Cetus | Identified exit to Archives 5600 | -6/Cetus | Manufactured an Enhanced Grunt 5613 | -6/Cetus | Entered Archives 5613 | -6/Archives | Accompanied by 4 allies (A7) 5618 | -6/Archives | Received a hacking code to weaken MAIN.C 5679 | -6/Archives | Discovered new exit (range 20) 5697 | -6/Archives | Discovered new exit (range 20) 5715 | -6/Archives | Discovered new exit (range 19) 5766 | -6/Archives | Identified exit to Hub_04(d) 5777 | -6/Archives | Entered Hub_04(d) 5777 | -6/Hub_04(d) | Accompanied by 2 allies 5859 | -6/Hub_04(d) | Discovered new exit (range 8) 5920 | -6/Hub_04(d) | Identified exit to Factory 5981 | -6/Hub_04(d) | Network Hub disabled 6071 | -6/Hub_04(d) | Spotted B-75 Beast 6136 | -6/Hub_04(d) | Spotted Lightning 6173 | -6/Hub_04(d) | Spotted Lightning 6173 | -6/Hub_04(d) | Spotted Lightning 6173 | -6/Hub_04(d) | Spotted Lightning 6185 | -6/Hub_04(d) | Discovered exit to Factory (range 16) 6205 | -6/Hub_04(d) | Discovered exit to Factory (range 9) 6233 | -6/Hub_04(d) | Network Hub disabled 6256 | -6/Hub_04(d) | Core integrity fell below 50% 6278 | -6/Hub_04(d) | System corruption reached 10% 6278 | -6/Hub_04(d) | Entered Factory 6278 | -5/Factory | Evolved 2 slots: Utility x2 6288 | -5/Factory | Lost 11 parts (2p5n4u) 6485 | -5/Factory | Identified exit to Upper Caves 6505 | -5/Factory | Found Prototype Launcher 6505 | -5/Factory | Identified Tesla Bomb Launcher 6694 | -5/Factory | Entered Upper Caves 6849 | -5/Upper Caves | Discovered new exit (range 9) 6850 | -5/Upper Caves | Identified exit to Upper Caves 6851 | -5/Upper Caves | Entered another Upper Caves area 7009 | -5/Upper Caves | Spotted B-75 Beast 7034 | -5/Upper Caves | Learned Factory emergency access door positions 7043 | -5/Upper Caves | Learned 4 Factory zone layouts 7043 | -5/Upper Caves | Discovered new exit (range 9) 7045 | -5/Upper Caves | Identified exit to Zhirov 7045 | -5/Upper Caves | Entered Zhirov 7045 | -5/Zhirov | Discovered new exit (range 3) 7046 | -5/Zhirov | Identified exit to Proximity Caves 7051 | -5/Zhirov | Met Zhirov 7058 | -5/Zhirov | Found Alien Artifact 7058 | -5/Zhirov | Identified Integrated Reactor 7058 | -5/Zhirov | Installed Integrated Reactor, increased core energy generation (+10) 7069 | -5/Zhirov | Found Alien Artifact 7069 | -5/Zhirov | Identified Transdimensional Reconstructor 7069 | -5/Zhirov | Warped through subspace 7082 | -5/Zhirov | Learned location of Quarantine (-2) 7082 | -5/Zhirov | Learned location of Testing (-3) 7082 | -5/Zhirov | Learned location of Command (-1) 7083 | -5/Zhirov | Zhirov requested help retrieving the SGEMP Prototype 7093 | -5/Zhirov | Entered Proximity Caves 7101 | -4/Proximity Caves | Spotter reported a threat 7122 | -4/Proximity Caves | Spotted B-86 Titan 7155 | -4/Proximity Caves | Lost 4 parts (1p2n1u) 7252 | -4/Proximity Caves | Unaware initiated a cargo recovery operation 7262 | -4/Proximity Caves | Encountered a Derelict guarding a broken Freighter 7272 | -4/Proximity Caves | Found Prototype Device 7272 | -4/Proximity Caves | Identified Beam Splitter 7307 | -4/Proximity Caves | Spotter reported a threat 7420 | -4/Proximity Caves | Spotter reported a threat 7490 | -4/Proximity Caves | Found Prototype Slashing Weapon 7490 | -4/Proximity Caves | Identified Nanosword 7493 | -4/Proximity Caves | Found Nanosword 7496 | -4/Proximity Caves | Found Prototype Device 7496 | -4/Proximity Caves | Identified Exp. EM Disruption Field 7509 | -4/Proximity Caves | Discovered new exit (range 8) 7511 | -4/Proximity Caves | Identified exit to Factory 7511 | -4/Proximity Caves | Entered Factory 7511 | -4/Factory | Evolved 2 slots: Utility x2 7512 | -4/Factory | Identified exit to Research 7609 | -4/Factory | Discovered exit to Research (range 19) 7635 | -4/Factory | Identified exit to Upper Caves 7635 | -4/Factory | Identified exit to Armory 7736 | -4/Factory | Spotted B-86 Titan 7796 | -4/Factory | Entered Upper Caves 7894 | -4/Upper Caves | Attracted the attention of an 0b10 checkpoint 7965 | -4/Upper Caves | Discovered new exit (range 15) 7967 | -4/Upper Caves | Identified exit to Upper Caves 7968 | -4/Upper Caves | Entered another Upper Caves area 8006 | -4/Upper Caves | Discovered new exit (range 8) 8007 | -4/Upper Caves | Identified exit to Warlord 8008 | -4/Upper Caves | Entered Warlord 8069 | -4/Warlord | Build established: Ninja 8085 | -4/Warlord | Found Prototype Device 8085 | -4/Warlord | Identified Minesniffer Drone Bay 8154 | -4/Warlord | Warlord's base attacked by MAIN.C 8159 | -4/Warlord | Met Warlord 8162 | -4/Warlord | Opened Warlord's prototype stash 8174 | -4/Warlord | Found Prototype Hackware 8174 | -4/Warlord | Identified System Mapper 8187 | -4/Warlord | Found Prototype Reactor 8187 | -4/Warlord | Identified Vortex Chain Reactor 8198 | -4/Warlord | Found Prototype Device 8198 | -4/Warlord | Identified Exp. Focal Shield 8258 | -4/Warlord | Found Prototype Energy Cannon 8258 | -4/Warlord | Identified Vortex Driver 8262 | -4/Warlord | Found Prototype Energy Gun 8262 | -4/Warlord | Identified Vortex Rifle 8264 | -4/Warlord | Found Vortex Rifle 8363 | -4/Warlord | Warlord forces counterattacked 8431 | -4/Warlord | Discovered new exit (range 12) 8436 | -4/Warlord | Identified exit to Proximity Caves 8436 | -4/Warlord | Entered Proximity Caves 8573 | -3/Proximity Caves | Spotted B-86 Titan 8593 | -3/Proximity Caves | Attracted the attention of an 0b10 checkpoint 8625 | -3/Proximity Caves | Discovered exit to Research (range 7) 8628 | -3/Proximity Caves | Entered Research 8628 | -3/Research | Evolved 2 slots: Utility x2 8640 | -3/Research | Identified exit to Testing 8702 | -3/Research | Found Prototype Launcher 8702 | -3/Research | Identified Adv. Micro-nuke Launcher 8705 | -3/Research | Found Adv. Micro-nuke Launcher 8707 | -3/Research | Found Adv. Micro-nuke Launcher 8738 | -3/Research | Build established: Hacker-Ninja 8828 | -3/Research | Revision forces began assault on 0b10 8895 | -3/Research | Discovered new exit (range 11) 8917 | -3/Research | Identified exit to Research 8960 | -3/Research | Entered Testing 9014 | -3/Testing | Spotted Striker 9268 | -3/Testing | Spotted PH-0SJVEXSP9S 9305 | -3/Testing | Destroyed 7 combat bots 9319 | -3/Testing | Rewired PH-0SJVEXSP9S 9339 | -3/Testing | Found Prototype Device 9339 | -3/Testing | Identified Adv. Kinecellerator 9432 | -3/Testing | Found Prototype Launcher 9432 | -3/Testing | Identified Tactical Quantum Warhead 9441 | -3/Testing | Spotted Striker 9451 | -3/Testing | Allies destroyed Striker 9460 | -3/Testing | Spotted Alpha 7 9462 | -3/Testing | Allies destroyed Striker 9543 | -3/Testing | Destroyed Alpha 7 9559 | -3/Testing | Stole the SGEMP Prototype 9619 | -3/Testing | Found Prototype Processor 9619 | -3/Testing | Identified Exp. Terrain Scan Processor 9628 | -3/Testing | Discovered exit to Research (range 10) 9653 | -3/Testing | Entered Research 9653 | -2/Research | Warlord forces began assault on 0b10 9653 | -2/Research | Evolved 2 slots: Utility x1, Weapon x1 9654 | -2/Research | Identified exit to Quarantine 9763 | -2/Research | Research machine network offline 9877 | -2/Research | Met up with Warlord 9956 | -2/Research | Entered Quarantine 9967 | -2/Quarantine | Found Alien Artifact 9967 | -2/Quarantine | Identified Subatomic Replicator 10083 | -2/Quarantine | Found Alien Artifact 10177 | -2/Quarantine | Identified Core Reset Matrix 10191 | -2/Quarantine | Met incapacitated Sigix Warrior 10191 | -2/Quarantine | Lockdown squad dispatched 10195 | -2/Quarantine | Acquired the access code to the Sigix quarantine chamber 10196 | -2/Quarantine | Unlocked Sigix quarantine chamber 10253 | -2/Quarantine | Cryocooling Duct disabled 10268 | -2/Quarantine | Ambient heat levels rising (+20) 10268 | -2/Quarantine | Non-combat units ordered to evacuate 10326 | -2/Quarantine | Spotted Fortress 10362 | -2/Quarantine | Discovered new exit (range 5) 10364 | -2/Quarantine | Identified exit to Section 7 10365 | -2/Quarantine | Entered Section 7 10477 | -2/Section 7 | Used Subatomic Replicator to create Alien Artifact 10479 | -2/Section 7 | Identified Supercharged Integrated Reactor 10479 | -2/Section 7 | Installed Supercharged Integrated Reactor, increased core energy generation (+15) 10519 | -2/Section 7 | Found Integrated Reactor 10519 | -2/Section 7 | Installed Integrated Reactor, increased core energy generation (+10) 10540 | -2/Section 7 | Found Prototype Hackware 10540 | -2/Section 7 | Identified Exp. Hacking Suite 10572 | -2/Section 7 | Spotted S7 Guard 10588 | -2/Section 7 | Found Alien Artifact 10588 | -2/Section 7 | Identified Navigation Efficiency Matrix 10588 | -2/Section 7 | Installed Navigation Efficiency Matrix, process failed with unexpected side effects 10622 | -2/Section 7 | Spotted Alpha 7 10623 | -2/Section 7 | Spotted Alpha 7 10668 | -2/Section 7 | Spotted Executioner 10669 | -2/Section 7 | Spotted Executioner 10701 | -2/Section 7 | Spotted B-99 Colossus 10753 | -2/Section 7 | Found Alien Artifact 10753 | -2/Section 7 | Identified LRC Inertial Stabilizer 10753 | -2/Section 7 | Installed LRC Inertial Stabilizer, increased mass support (+10) 10755 | -2/Section 7 | Found LRC Inertial Stabilizer 10755 | -2/Section 7 | Installed LRC Inertial Stabilizer, increased mass support (+10) 10761 | -2/Section 7 | Found Alien Artifact 10761 | -2/Section 7 | Identified LRC Armor 10761 | -2/Section 7 | Installed LRC Armor, increased core integrity (+250) 10824 | -2/Section 7 | Spotted Executioner 10830 | -2/Section 7 | Activated Sigix Exoskeleton 10830 | -2/Section 7 | Unable to understand communications from Sigix Warrior 10867 | -2/Section 7 | Allies destroyed B-99 Colossus 10935 | -2/Section 7 | Unable to understand communications from Sigix Warrior 10942 | -2/Section 7 | Destroyed Alpha 7 10942 | -2/Section 7 | Destroyed Alpha 7 11016 | -2/Section 7 | Found Alien Artifact 11016 | -2/Section 7 | Identified Integrated Mediator 11016 | -2/Section 7 | Installed Integrated Mediator, increased core attachment efficiency 11021 | -2/Section 7 | Destroyed 27 combat bots 11076 | -2/Section 7 | Spotted B-90 Cyclops 11104 | -2/Section 7 | Spotted Executioner 11106 | -2/Section 7 | Spotted Executioner 11107 | -2/Section 7 | Spotted Striker 11107 | -2/Section 7 | Spotted Striker 11107 | -2/Section 7 | Spotted Striker 11109 | -2/Section 7 | Spotted Executioner 11113 | -2/Section 7 | Unable to understand communications from Sigix Warrior 11115 | -2/Section 7 | Destroyed Executioner 11117 | -2/Section 7 | Destroyed Striker 11117 | -2/Section 7 | Destroyed Striker 11119 | -2/Section 7 | Destroyed Executioner 11119 | -2/Section 7 | Destroyed Striker 11131 | -2/Section 7 | Destroyed B-90 Cyclops 11142 | -2/Section 7 | Discovered new exit (range 20) 11163 | -2/Section 7 | Lost 10 parts (2p3n4u1w) 11172 | -2/Section 7 | Destroyed 34 combat bots 11182 | -2/Section 7 | Identified exit to Access 11184 | -2/Section 7 | Entered Access 11184 | -1/Access | Accompanied by 1 ally (Sigix Warrior) 11184 | -1/Access | Evolved 2 slots: Utility x2 11185 | -1/Access | Attacked by Zhirov 11199 | -1/Access | Destroyed Svarog 11212 | -1/Access | Allies destroyed Perun 11225 | -1/Access | Allies destroyed Zhirov 11233 | -1/Access | Found Transdimensional Reconstructor 11234 | -1/Access | Found Prototype Hackware 11234 | -1/Access | Identified Quantum Router 11236 | -1/Access | Found Prototype Hackware 11236 | -1/Access | Identified Deep Network Scanner 11238 | -1/Access | Found Quantum Router 11256 | -1/Access | Found Adv. Powered Armor 11299 | -1/Access | Spotted B-99 Colossus 11319 | -1/Access | Unable to understand communications from Sigix Warrior 11341 | -1/Access | Destroyed B-99 Colossus 11348 | -1/Access | Spotted Executioner 11348 | -1/Access | Spotted Striker 11348 | -1/Access | Spotted Striker 11355 | -1/Access | Allies destroyed Executioner 11359 | -1/Access | Destroyed Striker 11368 | -1/Access | Allies destroyed Striker 11385 | -1/Access | Found Prototype Processor 11385 | -1/Access | Identified Exp. Core Analyzer 11400 | -1/Access | Found Prototype Ballistic Gun 11400 | -1/Access | Identified Multirail 11462 | -1/Access | Spotted B-99 Colossus 11500 | -1/Access | Unable to understand communications from Sigix Warrior 11610 | -1/Access | Spotted Executioner 11611 | -1/Access | Spotted Executioner 11627 | -1/Access | Spotted B-99 Colossus 11627 | -1/Access | Spotted B-99 Colossus 11653 | -1/Access | Discovered new exit (range 2) 11653 | -1/Access | Identified exit to Command 11681 | -1/Access | Core integrity fell below 50% 11682 | -1/Access | Warped through subspace 11692 | -1/Access | Core integrity fell below 20% 11694 | -1/Access | Destroyed by H-88 Terminator with KE Penetrator Last Messages --------------- 11690_ System Mapper destroyed. 11691_ Penetrated by Slug. 11691_ Exp. Terrain Scan Processor destroyed. 11691_ Slug penetrates Sealed Heavy Doors. 11691_ K-01 Serf destroyed. 11691_ Slug penetrates Wall. 11691_ Penetrated by Slug. 11691_ Slug penetrates B-74 Champion. 11691_ Penetrated by Slug. 11691_ Slug penetrates Wall. 11692_ Penetrated by Slug. 11692_ Slug penetrates Sealed Heavy Doors. 11693_ System corrupted: Heat flow error (+201). 11693_ Penetrated by Slug. 11693_ Slug penetrates H-88 Terminator. 11693_ M-36 Artificer repairs Executioner. 11694_ Started Zhirov Special timer (10). 11694_ Slug penetrates Sealed Heavy Doors. 11694_ Slug penetrates H-88 Terminator. 11694_ Slug penetrates Wall. Map ----- +----------------------------------------------------+ | ????????????????????#???"" ????????????????????? | | ????????????????????# ??" ????????????????????? | | ????????????????????? ?????????????????????? | | ??????????????????????? ??????????????????????? | | ????????????# ##########+######################## | | ????????????# | | ????????????# % | | ????????????# ################# ####+####?????? | | ???????????????????????????????# #?????????????? | | ??????????????????????????????## ##????????????? | | ??????????????????????????????# #????????????? | | ??????????????????????????????# #????????????? | | ??????????????????????????????# #????????????? | | ??????????????????????????????# #????????????? | | ??????????????????######??????# #????????????? | | ??????????????????# #???????# ##????????????? | | ??????????????????# #???????# #?????????????? | | ??????????????????# ##??????# #?????????????? | | ??????????????????## "##?????# #?????????????? | | ???????????????????# % # #?????# #?????????????? | | ?????????????#####?#%BB;##?????# #?????????????? | | ?????????????# ###%BB; ##???## ##????????????? | | ?????????????# > "## % ;;;#####h !k ############## | | ?????????????# " % h h E! | | ?????????????# """ " Em | | ?????????????# "?"% " @h | | ?????????????# #?# %###### b ############## | | ?????????????# ##?# % #????# %* #????????????? | | ?????????????#""#??# %"#???# #????????????? | | ???????????????????# ##???#! !%=" #??????????? | | ??????????????????## #????# [ " #??????????? | | ??????????????????# #????# " #?????????? | | ??????????????????# #????# ## #????????? | | ??????????????????# #????# " ###????????? | | ??????????????????######????#### ###??????????? | | ??????????????????############## #????????????? | | ??????????????????# !# #????????????? | | ?????????????????## # #????????????? | | ?????????????????#" # #????????????? | | ??????????????????# # #????????????? | | ??????????????????# [# #????????????? | | ??????????????????# * # #????????????? | | ??????????????????# # #????????????? | | ??????????????????# # #??????# ????? | | ??????????????????# ! + ####???? ??? | | ??????????????????# # ??? | | ????????????????### # ######### | | ????????????????# # + #????###? ??? # | | ???????????#######"##############+###?##??##??+### | | ???????????# #? ? ?#####?? | +----------------------------------------------------+ Best States ------------- Heat Dissipation 80 Energy Generation 84 Energy Capacity 440 Matter Stores 300 Matter Capacity 300 Sight Range 23 Robot Scan Range 16 Terrain Scan Range 20 Terrain Scan Density 1010 ECM Strength 1 Jamming Range 16 Cloak Strength 3 Additional Mass Support 16 Corruption Containment 8 Armor Coverage 1000 Resistance: KI 30 Resistance: TH 75 Resistance: EM 75 Propulsion Shielding 66 Utility Shielding 66 Weapon Shielding 66 Melee Speed Boost 20 Evasion (%) 67 Targeting Accuracy 8 Melee Accuracy 14 Launcher Accuracy 40 Target Analysis 8 Core Analysis 8 Recoil Reduction 2 Kinecelleration 50 Offensive Hacking 61 Defensive Hacking 50 Item Schematics ----------------- Combat Drone Bay | -7/Data Miner | Free Lgt. Regenerative Plating | -7/Data Miner | Free Biomechanical Wings | -7/Data Miner | Free Thermal Defense Suite | -7/Data Miner | Free Shock Maul | -7/Data Miner | Free Cmb. Gravmag System | -7/Data Miner | Free Imp. Shock Absorption System | -7/Data Miner | Free Enh. Gauss Cannon | -7/Data Miner | Free Lyr. Medium Armor Plating | -7/Data Miner | Free Imp. Thermal Shield | -7/Data Miner | Free Centrium Wheel | -7/Data Miner | Free Impulse Thruster | -7/Data Miner | Free Assault Drone Bay | -5/Zhirov | Free Exp. Heat Sink | -5/Zhirov | Free Exp. Optical Array | -5/Zhirov | Free Imp. Arc Thrower | -5/Zhirov | Free Adv. KE Penetrator | -3/Testing | Archive Adv. Energy Well | -3/Testing | Archive Exp. Signal Interpreter | -3/Testing | Archive Robot Schematics ------------------ H-66 Slayer | -7/Data Miner | Free R-10 Processor | -7/Data Miner | Free E-15 Imp | -7/Data Miner | Free Fabricated ------------ Nothing Alien Tech Used ----------------- Core Expander Integrated Reactor Transdimensional Reconstructor Subatomic Replicator Supercharged Integrated Reactor Navigation Efficiency Matrix LRC Inertial Stabilizer LRC Armor Integrated Mediator Achievements -------------- None Challenges ------------ None Game ------ Seed FactoryMomentumTrap Manual? 0 Play Time 04:11:55 Cumulative 1077.4 hours Start 2024.03.29 @ 19:48:31 End 2024.03.30 @ 03:06:07 Sessions 5 Manual Loads 0 Difficulty Rogue Special Mode None Game No. 540 Rogue 413 Adventurer 125 Explorer 2 Win Type - Total 129 Types 100/10/9/3/3/0/0/2/2 Lore% 83 Gallery% 90 Achievement% 84 Wizard Run 0 Options --------- Layout 0 ASCII 0 Keyboard 1 Movement Numpad Keybinds 0 Fullscreen 1 Font 36/Terminus++ Map View 76x50 Zoom Use 0% Tactical HUD 1 Map Filters NONE Filters NONE Steam 1 RUN: 3b27f59c-acb1-464e-8607-6b8bce793464